[Event "Titled Tuesday Blitz December 20 Early 2022"]
[White "Ducrest, Pierre"]
[Black "SaiHanThiha"]
[WhiteFideId "1303627"]
[WhiteElo "2004"]
[BlackElo "2429"]
[Result "1-0"]
[Round "05"]
[TimeControl "180+2"]
[Date "2022.12.20"]
[WhiteClock "0:00:02"]
[BlackClock "0:00:01"]

1. d4 {[%clk 0:03:00]}  Nf6 {[%clk 0:02:59]} 2. c4 {[%clk 0:03:00]}  e6 {[%clk 0:03:00]} 3. Nc3 {[%clk 0:03:00]}  Bb4 {[%clk 0:03:00]} 4. Qc2 {[%clk 0:03:00]}  O-O {[%clk 0:03:00]} 5. a3 {[%clk 0:03:00]}  Bxc3+ {[%clk 0:03:00]} 6. Qxc3 {[%clk 0:03:01]}  b6 {[%clk 0:03:01]} 7. Bg5 {[%clk 0:03:00]}  Bb7 {[%clk 0:03:01]} 8. e3 {[%clk 0:03:00]}  h6 {[%clk 0:03:01]} 9. Bh4 {[%clk 0:03:00]}  c5 {[%clk 0:02:57]} 10. dxc5 {[%clk 0:02:59]}  bxc5 {[%clk 0:02:57]} 11. Nf3 {[%clk 0:02:52]}  d6 {[%clk 0:02:48]} 12. Bd3 {[%clk 0:02:47]}  Nbd7 {[%clk 0:02:46]} 13. O-O {[%clk 0:02:26]}  Qc7 {[%clk 0:02:23]} 14. Rfd1 {[%clk 0:02:20]}  e5 {[%clk 0:02:20]} 15. Nd2 {[%clk 0:02:15]}  Rae8 {[%clk 0:01:54]} 16. b4 {[%clk 0:02:11]}  Nh7 {[%clk 0:01:51]} 17. Qc2 {[%clk 0:02:09]}  Ng5 {[%clk 0:01:17]} 18. Bxg5 {[%clk 0:02:05]}  hxg5 {[%clk 0:01:17]} 19. Be4 {[%clk 0:02:04]}  Bc8 {[%clk 0:01:08]} 20. h3 {[%clk 0:01:19]}  Nb6 {[%clk 0:01:03]} 21. Bf5 {[%clk 0:01:07]}  Bb7 {[%clk 0:00:32]} 22. Ne4 {[%clk 0:01:02]}  Bxe4 {[%clk 0:00:28]} 23. Bxe4 {[%clk 0:00:41]}  cxb4 {[%clk 0:00:28]} 24. axb4 {[%clk 0:00:40]}  Qxc4 {[%clk 0:00:26]} 25. Qxc4 {[%clk 0:00:37]}  Nxc4 {[%clk 0:00:27]} 26. Rxa7 {[%clk 0:00:37]}  Rb8 {[%clk 0:00:24]} 27. Bd5 {[%clk 0:00:36]}  Rxb4 {[%clk 0:00:21]} 28. Rc1 {[%clk 0:00:10]}  Nb6 {[%clk 0:00:21]} 29. Ba2 {[%clk 0:00:10]}  d5 {[%clk 0:00:20]} 30. Rcc7 {[%clk 0:00:10]}  g6 {[%clk 0:00:15]} 31. g4 {[%clk 0:00:10]}  Kg7 {[%clk 0:00:14]} 32. Kg2 {[%clk 0:00:10]}  Rb2 {[%clk 0:00:14]} 33. e4 {[%clk 0:00:08]}  dxe4 {[%clk 0:00:11]} 34. Bxf7 {[%clk 0:00:07]}  Kh6 {[%clk 0:00:10]} 35. Rc6 {[%clk 0:00:07]}  e3 {[%clk 0:00:08]} 36. Rxg6+ {[%clk 0:00:06]}  Kh7 {[%clk 0:00:08]} 37. Rf6 {[%clk 0:00:05]}  Rxf2+ {[%clk 0:00:07]} 38. Rxf2 {[%clk 0:00:05]}  exf2 {[%clk 0:00:08]} 39. Kf1 {[%clk 0:00:03]}  Nc8 {[%clk 0:00:08]} 40. Be6+ {[%clk 0:00:02]}  Kh6 {[%clk 0:00:05]} 41. Bf5 {[%clk 0:00:03]}  Rh8 {[%clk 0:00:03]} 42. Kxf2 {[%clk 0:00:02]}  e4 {[%clk 0:00:01]} 43. Bxe4 {[%clk 0:00:02]} 1-0


[Site "https://www.chess.com"]

[Event "Titled Tuesday Blitz December 20 Early 2022"]
[White "Edam, Michael"]
[Black "Hanfin, Zahra Chumaira Amelia"]
[WhiteFideId "24613231"]
[BlackFideId "7111983"]
[WhiteElo "2023"]
[BlackElo "2062"]
[Result "1-0"]
[Round "05"]
[TimeControl "180+2"]
[Date "2022.12.20"]
[WhiteClock "0:00:22"]
[BlackClock "0:00:03"]

1. e4 {[%clk 0:01:59]}  c5 {[%clk 0:02:57]} 2. Nf3 {[%clk 0:01:59]}  d6 {[%clk 0:02:54]} 3. d4 {[%clk 0:01:56]}  cxd4 {[%clk 0:02:55]} 4. Nxd4 {[%clk 0:01:57]}  Nf6 {[%clk 0:02:55]} 5. Nc3 {[%clk 0:01:58]}  Nc6 {[%clk 0:02:55]} 6. Nd5 {[%clk 0:01:50]}  e6 {[%clk 0:02:50]} 7. Nxf6+ {[%clk 0:01:45]}  Qxf6 {[%clk 0:02:51]} 8. c3 {[%clk 0:01:43]}  Be7 {[%clk 0:02:46]} 9. Bb5 {[%clk 0:01:42]}  Bd7 {[%clk 0:02:44]} 10. O-O {[%clk 0:01:43]}  O-O {[%clk 0:02:41]} 11. Be3 {[%clk 0:01:41]}  a6 {[%clk 0:02:38]} 12. Be2 {[%clk 0:01:40]}  Rac8 {[%clk 0:02:23]} 13. f4 {[%clk 0:01:40]}  Nxd4 {[%clk 0:01:43]} 14. cxd4 {[%clk 0:01:40]}  Qg6 {[%clk 0:01:37]} 15. Bd3 {[%clk 0:01:37]}  Bc6 {[%clk 0:01:28]} 16. d5 {[%clk 0:01:30]}  Bb5 {[%clk 0:01:23]} 17. Bxb5 {[%clk 0:01:25]}  axb5 {[%clk 0:01:23]} 18. Qd3 {[%clk 0:01:23]}  Rc4 {[%clk 0:01:17]} 19. f5 {[%clk 0:01:18]}  exf5 {[%clk 0:00:47]} 20. exf5 {[%clk 0:01:13]}  Qf6 {[%clk 0:00:42]} 21. b3 {[%clk 0:01:08]}  Rc3 {[%clk 0:00:40]} 22. Qd4 {[%clk 0:01:08]}  Qxd4 {[%clk 0:00:39]} 23. Bxd4 {[%clk 0:01:08]}  Rd3 {[%clk 0:00:38]} 24. Rad1 {[%clk 0:01:08]}  Rxd1 {[%clk 0:00:35]} 25. Rxd1 {[%clk 0:01:08]}  Rc8 {[%clk 0:00:35]} 26. Rd2 {[%clk 0:01:03]}  Bg5 {[%clk 0:00:33]} 27. Re2 {[%clk 0:01:03]}  Kf8 {[%clk 0:00:31]} 28. Kf2 {[%clk 0:00:59]}  b4 {[%clk 0:00:24]} 29. g3 {[%clk 0:00:47]}  Rc1 {[%clk 0:00:20]} 30. h4 {[%clk 0:00:46]}  Bh6 {[%clk 0:00:15]} 31. Bb6 {[%clk 0:00:30]}  Rh1 {[%clk 0:00:12]} 32. Ba5 {[%clk 0:00:25]}  Rh2+ {[%clk 0:00:10]} 33. Kf3 {[%clk 0:00:26]}  Rxe2 {[%clk 0:00:08]} 34. Kxe2 {[%clk 0:00:26]}  Ke7 {[%clk 0:00:07]} 35. Bxb4 {[%clk 0:00:27]}  Kf6 {[%clk 0:00:05]} 36. g4 {[%clk 0:00:27]}  Bf4 {[%clk 0:00:04]} 37. Kf3 {[%clk 0:00:26]}  Be5 {[%clk 0:00:04]} 38. Ke4 {[%clk 0:00:25]}  Bg3 {[%clk 0:00:03]} 39. Bc3+ {[%clk 0:00:22]} 1-0


[Site "https://www.chess.com"]

[Event "Titled Tuesday Blitz December 20 Early 2022"]
[White "Ekat, Michael"]
[Black "Pietrek, Gerhard"]
[WhiteFideId "4689801"]
[BlackFideId "24631698"]
[WhiteElo "2051"]
[BlackElo "1596"]
[Result "0-1"]
[Round "05"]
[TimeControl "180+2"]
[Date "2022.12.20"]
[WhiteClock "0:00:48"]
[BlackClock "0:01:02"]

1. d4 {[%clk 0:02:57]}  Nf6 {[%clk 0:02:58]} 2. c4 {[%clk 0:02:56]}  c5 {[%clk 0:02:59]} 3. d5 {[%clk 0:02:56]}  d6 {[%clk 0:02:57]} 4. Nc3 {[%clk 0:02:55]}  g6 {[%clk 0:02:56]} 5. e4 {[%clk 0:02:54]}  Bg7 {[%clk 0:02:57]} 6. Bd3 {[%clk 0:02:54]}  O-O {[%clk 0:02:58]} 7. Nge2 {[%clk 0:02:54]}  a6 {[%clk 0:02:57]} 8. a4 {[%clk 0:02:53]}  e6 {[%clk 0:02:58]} 9. O-O {[%clk 0:02:53]}  exd5 {[%clk 0:02:57]} 10. cxd5 {[%clk 0:02:53]}  Nbd7 {[%clk 0:02:52]} 11. Ng3 {[%clk 0:02:50]}  h5 {[%clk 0:02:47]} 12. Re1 {[%clk 0:02:47]}  h4 {[%clk 0:02:44]} 13. Nf1 {[%clk 0:02:46]}  h3 {[%clk 0:02:43]} 14. g3 {[%clk 0:02:45]}  Ne5 {[%clk 0:02:42]} 15. Be2 {[%clk 0:02:42]}  Re8 {[%clk 0:02:22]} 16. Ne3 {[%clk 0:02:36]}  Rb8 {[%clk 0:02:13]} 17. f4 {[%clk 0:02:32]}  Ned7 {[%clk 0:02:12]} 18. Bf3 {[%clk 0:02:29]}  b5 {[%clk 0:02:07]} 19. axb5 {[%clk 0:02:28]}  axb5 {[%clk 0:02:08]} 20. Ng4 {[%clk 0:02:22]}  b4 {[%clk 0:02:05]} 21. Nb1 {[%clk 0:02:15]}  Nxg4 {[%clk 0:01:59]} 22. Bxg4 {[%clk 0:02:14]}  Bd4+ {[%clk 0:01:51]} 23. Kh1 {[%clk 0:02:09]}  Nf6 {[%clk 0:01:49]} 24. Bf3 {[%clk 0:01:58]}  Bb7 {[%clk 0:01:47]} 25. Nd2 {[%clk 0:01:54]}  Qd7 {[%clk 0:01:34]} 26. Nc4 {[%clk 0:01:51]}  Nxe4 {[%clk 0:01:15]} 27. Rxe4 {[%clk 0:01:39]}  Rxe4 {[%clk 0:01:05]} 28. Bxe4 {[%clk 0:01:39]}  Re8 {[%clk 0:01:05]} 29. Bf3 {[%clk 0:01:25]}  Qf5 {[%clk 0:01:05]} 30. Nxd6 {[%clk 0:01:15]}  Qxd5 {[%clk 0:01:04]} 31. Nxb7 {[%clk 0:00:49]}  Qxf3+ {[%clk 0:01:02]} 32. Qxf3 {[%clk 0:00:48]}  Re1+ {[%clk 0:01:02]} 0-1


[Site "https://www.chess.com"]

[Event "Titled Tuesday Blitz December 20 Early 2022"]
[White "Eloisa Navez, Angel"]
[Black "Chesca, Alexandru"]
[WhiteFideId "5117305"]
[BlackFideId "1214438"]
[WhiteElo "1942"]
[BlackElo "1917"]
[Result "1-0"]
[Round "05"]
[TimeControl "180+2"]
[Date "2022.12.20"]
[WhiteClock "0:01:31"]
[BlackClock "0:01:30"]

1. e4 {[%clk 0:03:00]}  d6 {[%clk 0:02:59]} 2. d4 {[%clk 0:03:00]}  Nf6 {[%clk 0:02:59]} 3. Nc3 {[%clk 0:03:00]}  e5 {[%clk 0:03:00]} 4. dxe5 {[%clk 0:03:00]}  dxe5 {[%clk 0:03:01]} 5. Qxd8+ {[%clk 0:03:00]}  Kxd8 {[%clk 0:03:02]} 6. Bc4 {[%clk 0:03:00]}  Be6 {[%clk 0:03:02]} 7. Bxe6 {[%clk 0:03:00]}  fxe6 {[%clk 0:03:03]} 8. f3 {[%clk 0:03:00]}  Nbd7 {[%clk 0:03:00]} 9. Nh3 {[%clk 0:03:00]}  Bb4 {[%clk 0:02:57]} 10. Bd2 {[%clk 0:02:58]}  h6 {[%clk 0:02:53]} 11. Nf2 {[%clk 0:02:58]}  a6 {[%clk 0:02:45]} 12. Nd3 {[%clk 0:02:58]}  Bd6 {[%clk 0:02:45]} 13. Nd1 {[%clk 0:02:54]}  Ke7 {[%clk 0:02:44]} 14. Ne3 {[%clk 0:02:54]}  b5 {[%clk 0:02:42]} 15. a4 {[%clk 0:02:49]}  Nc5 {[%clk 0:02:30]} 16. Nxc5 {[%clk 0:02:38]}  Bxc5 {[%clk 0:02:31]} 17. Ke2 {[%clk 0:02:38]}  Nd7 {[%clk 0:02:27]} 18. Ra2 {[%clk 0:02:13]}  Rhb8 {[%clk 0:02:22]} 19. axb5 {[%clk 0:02:08]}  axb5 {[%clk 0:02:20]} 20. Rha1 {[%clk 0:02:08]}  Rxa2 {[%clk 0:02:21]} 21. Rxa2 {[%clk 0:02:08]}  g5 {[%clk 0:02:05]} 22. Ra5 {[%clk 0:01:44]}  c6 {[%clk 0:02:01]} 23. Ra6 {[%clk 0:01:42]}  Rb6 {[%clk 0:01:54]} 24. Ra8 {[%clk 0:01:41]}  Rb8 {[%clk 0:01:53]} 25. Rxb8 {[%clk 0:01:37]}  Nxb8 {[%clk 0:01:54]} 26. Ng4 {[%clk 0:01:36]}  Nd7 {[%clk 0:01:38]} 27. Nxh6 {[%clk 0:01:36]}  Bg1 {[%clk 0:01:35]} 28. Ng4 {[%clk 0:01:34]}  Kd6 {[%clk 0:01:30]} 29. Bxg5 {[%clk 0:01:31]} 1-0


[Site "https://www.chess.com"]

[Event "Titled Tuesday Blitz December 20 Early 2022"]
[White "Firouzja, Alireza"]
[Black "Sanan_Sjugirov"]
[WhiteFideId "12573981"]
[WhiteElo "2785"]
[BlackElo "2933"]
[Result "1-0"]
[Round "05"]
[TimeControl "180+2"]
[Date "2022.12.20"]
[WhiteClock "0:00:04"]
[BlackClock "0:00:02"]

1. d4 {[%clk 0:01:48]}  d5 {[%clk 0:02:57]} 2. c4 {[%clk 0:01:47]}  c6 {[%clk 0:02:57]} 3. Nf3 {[%clk 0:01:47]}  Nf6 {[%clk 0:02:57]} 4. Nc3 {[%clk 0:01:47]}  dxc4 {[%clk 0:02:57]} 5. e4 {[%clk 0:01:43]}  b5 {[%clk 0:02:57]} 6. Be2 {[%clk 0:01:43]}  e6 {[%clk 0:02:55]} 7. O-O {[%clk 0:01:43]}  a5 {[%clk 0:02:53]} 8. e5 {[%clk 0:01:37]}  Nd5 {[%clk 0:02:51]} 9. Ne4 {[%clk 0:01:38]}  a4 {[%clk 0:02:37]} 10. Bg5 {[%clk 0:01:36]}  Qc7 {[%clk 0:02:32]} 11. b3 {[%clk 0:01:32]}  cxb3 {[%clk 0:02:29]} 12. axb3 {[%clk 0:01:32]}  a3 {[%clk 0:02:29]} 13. Bd3 {[%clk 0:01:30]}  h6 {[%clk 0:02:24]} 14. Bd2 {[%clk 0:01:26]}  Na6 {[%clk 0:02:14]} 15. Qc1 {[%clk 0:01:06]}  Nab4 {[%clk 0:02:03]} 16. Be2 {[%clk 0:01:06]}  a2 {[%clk 0:01:56]} 17. h3 {[%clk 0:01:01]}  Be7 {[%clk 0:01:54]} 18. Re1 {[%clk 0:00:57]}  Bd7 {[%clk 0:01:17]} 19. Bf1 {[%clk 0:00:56]}  Qa7 {[%clk 0:01:15]} 20. Nd6+ {[%clk 0:00:54]}  Bxd6 {[%clk 0:01:15]} 21. exd6 {[%clk 0:00:55]}  Qa3 {[%clk 0:01:12]} 22. Qc5 {[%clk 0:00:54]}  Qxb3 {[%clk 0:00:53]} 23. Ne5 {[%clk 0:00:40]}  Nc2 {[%clk 0:00:51]} 24. Nxd7 {[%clk 0:00:40]}  Kxd7 {[%clk 0:00:50]} 25. Rec1 {[%clk 0:00:40]}  Ncb4 {[%clk 0:00:40]} 26. Bxb4 {[%clk 0:00:33]}  Nxb4 {[%clk 0:00:39]} 27. Bxb5 {[%clk 0:00:28]}  Rhc8 {[%clk 0:00:36]} 28. Bc4 {[%clk 0:00:23]}  Qa4 {[%clk 0:00:34]} 29. Qe5 {[%clk 0:00:23]}  Qa5 {[%clk 0:00:18]} 30. Qxg7 {[%clk 0:00:20]}  Qf5 {[%clk 0:00:19]} 31. Rc3 {[%clk 0:00:11]}  Rg8 {[%clk 0:00:16]} 32. Qxh6 {[%clk 0:00:11]}  Qb1+ {[%clk 0:00:11]} 33. Rc1 {[%clk 0:00:11]}  Qe4 {[%clk 0:00:10]} 34. Bf1 {[%clk 0:00:11]}  Nd3 {[%clk 0:00:11]} 35. Rc3 {[%clk 0:00:06]}  Qxd4 {[%clk 0:00:06]} 36. Qd2 {[%clk 0:00:04]}  Ne5 {[%clk 0:00:02]} 37. Qxd4 {[%clk 0:00:04]} 1-0


[Site "https://www.chess.com"]

[Event "Titled Tuesday Blitz December 20 Early 2022"]
[White "GHANDEEVAM2003"]
[Black "Harsha_Bharathakoti"]
[WhiteElo "3050"]
[BlackElo "2867"]
[Result "1/2-1/2"]
[Round "05"]
[TimeControl "180+2"]
[Date "2022.12.20"]
[WhiteClock "0:00:11"]
[BlackClock "0:00:05"]

1. c4 {[%clk 0:03:00]}  g6 {[%clk 0:02:54]} 2. g3 {[%clk 0:02:59]}  Bg7 {[%clk 0:02:53]} 3. Bg2 {[%clk 0:03:00]}  c5 {[%clk 0:02:52]} 4. Nc3 {[%clk 0:02:59]}  Nc6 {[%clk 0:02:52]} 5. d3 {[%clk 0:02:59]}  d6 {[%clk 0:02:49]} 6. Qd2 {[%clk 0:02:58]}  h5 {[%clk 0:02:46]} 7. h4 {[%clk 0:02:53]}  Nh6 {[%clk 0:02:42]} 8. b3 {[%clk 0:02:52]}  Nf5 {[%clk 0:02:41]} 9. Bb2 {[%clk 0:02:53]}  O-O {[%clk 0:02:26]} 10. e3 {[%clk 0:02:53]}  e6 {[%clk 0:02:17]} 11. Nge2 {[%clk 0:02:52]}  Qd7 {[%clk 0:02:11]} 12. Ne4 {[%clk 0:02:51]}  Ne5 {[%clk 0:02:07]} 13. d4 {[%clk 0:02:18]}  cxd4 {[%clk 0:02:00]} 14. Nxd4 {[%clk 0:02:19]}  Rd8 {[%clk 0:01:40]} 15. Nxf5 {[%clk 0:01:50]}  gxf5 {[%clk 0:01:40]} 16. Ng5 {[%clk 0:01:51]}  Rb8 {[%clk 0:01:25]} 17. O-O {[%clk 0:01:36]}  b5 {[%clk 0:01:23]} 18. cxb5 {[%clk 0:01:32]}  Rxb5 {[%clk 0:01:08]} 19. Qe2 {[%clk 0:01:27]}  Ng4 {[%clk 0:01:08]} 20. Bxg7 {[%clk 0:01:27]}  Kxg7 {[%clk 0:01:09]} 21. Rac1 {[%clk 0:01:27]}  Bb7 {[%clk 0:01:05]} 22. e4 {[%clk 0:01:13]}  fxe4 {[%clk 0:00:59]} 23. Bxe4 {[%clk 0:01:14]}  Bxe4 {[%clk 0:00:40]} 24. Qxe4 {[%clk 0:01:15]}  Nf6 {[%clk 0:00:39]} 25. Qd4 {[%clk 0:01:09]}  Rd5 {[%clk 0:00:37]} 26. Qb2 {[%clk 0:01:08]}  e5 {[%clk 0:00:38]} 27. Rc4 {[%clk 0:01:00]}  Rc8 {[%clk 0:00:36]} 28. Qc2 {[%clk 0:00:55]}  Rxc4 {[%clk 0:00:36]} 29. bxc4 {[%clk 0:00:55]}  Rc5 {[%clk 0:00:31]} 30. Rd1 {[%clk 0:00:39]}  d5 {[%clk 0:00:31]} 31. Qd2 {[%clk 0:00:34]}  Rxc4 {[%clk 0:00:27]} 32. Nf3 {[%clk 0:00:34]}  Qf5 {[%clk 0:00:24]} 33. Qg5+ {[%clk 0:00:32]}  Qxg5 {[%clk 0:00:24]} 34. hxg5 {[%clk 0:00:33]}  Ng4 {[%clk 0:00:21]} 35. Rxd5 {[%clk 0:00:31]}  Rc1+ {[%clk 0:00:21]} 36. Kg2 {[%clk 0:00:30]}  e4 {[%clk 0:00:18]} 37. Nd4 {[%clk 0:00:30]}  Kg6 {[%clk 0:00:16]} 38. Ne2 {[%clk 0:00:13]}  Rc2 {[%clk 0:00:15]} 39. Nf4+ {[%clk 0:00:13]}  Kh7 {[%clk 0:00:14]} 40. Rd7 {[%clk 0:00:13]}  Rxf2+ {[%clk 0:00:13]} 41. Kg1 {[%clk 0:00:14]}  h4 {[%clk 0:00:10]} 42. g6+ {[%clk 0:00:13]}  Kg7 {[%clk 0:00:05]} 43. Rxf7+ {[%clk 0:00:13]}  Kg8 {[%clk 0:00:05]} 44. gxh4 {[%clk 0:00:07]}  e3 {[%clk 0:00:06]} 45. Nd5 {[%clk 0:00:06]}  Rxf7 {[%clk 0:00:02]} 46. gxf7+ {[%clk 0:00:07]}  Kxf7 {[%clk 0:00:02]} 47. Kf1 {[%clk 0:00:08]}  Kg6 {[%clk 0:00:02]} 48. Ke2 {[%clk 0:00:07]}  Kh5 {[%clk 0:00:02]} 49. a4 {[%clk 0:00:06]}  Kxh4 {[%clk 0:00:03]} 50. a5 {[%clk 0:00:06]}  Kg5 {[%clk 0:00:02]} 51. a6 {[%clk 0:00:07]}  Ne5 {[%clk 0:00:02]} 52. Kxe3 {[%clk 0:00:06]}  Nc6 {[%clk 0:00:01]} 53. Ke4 {[%clk 0:00:06]}  Nb8 {[%clk 0:00:01]} 54. Nc7 {[%clk 0:00:07]}  Nxa6 {[%clk 0:00:02]} 55. Nxa6 {[%clk 0:00:08]}  Kf6 {[%clk 0:00:03]} 56. Kd5 {[%clk 0:00:08]}  Kf7 {[%clk 0:00:04]} 57. Kc6 {[%clk 0:00:09]}  Kf8 {[%clk 0:00:05]} 58. Kb7 {[%clk 0:00:10]}  Kg8 {[%clk 0:00:05]} 59. Kxa7 {[%clk 0:00:11]} 1/2-1/2


[Site "https://www.chess.com"]

[Event "Titled Tuesday Blitz December 20 Early 2022"]
[White "GP9isback23"]
[Black "D`Arruda, Ricardo D."]
[BlackFideId "100692"]
[WhiteElo "2577"]
[BlackElo "2271"]
[Result "1/2-1/2"]
[Round "05"]
[TimeControl "180+2"]
[Date "2022.12.20"]
[WhiteClock "0:00:15"]
[BlackClock "0:00:52"]

1. d4 {[%clk 0:02:57]}  Nf6 {[%clk 0:02:57]} 2. Nf3 {[%clk 0:02:57]}  g6 {[%clk 0:02:55]} 3. e3 {[%clk 0:02:57]}  Bg7 {[%clk 0:02:54]} 4. Be2 {[%clk 0:02:58]}  d6 {[%clk 0:02:54]} 5. O-O {[%clk 0:02:59]}  O-O {[%clk 0:02:54]} 6. b3 {[%clk 0:02:59]}  c5 {[%clk 0:02:53]} 7. Bb2 {[%clk 0:03:00]}  Nc6 {[%clk 0:02:44]} 8. c4 {[%clk 0:02:58]}  Ne4 {[%clk 0:02:37]} 9. Nbd2 {[%clk 0:02:53]}  Bf5 {[%clk 0:02:33]} 10. Nxe4 {[%clk 0:02:26]}  Bxe4 {[%clk 0:02:34]} 11. Nd2 {[%clk 0:02:26]}  Bf5 {[%clk 0:02:31]} 12. Nf3 {[%clk 0:02:21]}  Qb6 {[%clk 0:02:15]} 13. dxc5 {[%clk 0:02:19]}  dxc5 {[%clk 0:02:10]} 14. Bxg7 {[%clk 0:02:18]}  Kxg7 {[%clk 0:02:11]} 15. Qd2 {[%clk 0:02:12]}  Rfd8 {[%clk 0:02:07]} 16. Qb2+ {[%clk 0:02:12]}  Kg8 {[%clk 0:02:07]} 17. Rad1 {[%clk 0:02:12]}  Rxd1 {[%clk 0:02:03]} 18. Rxd1 {[%clk 0:02:12]}  Rd8 {[%clk 0:02:03]} 19. Rxd8+ {[%clk 0:02:09]}  Qxd8 {[%clk 0:02:04]} 20. h3 {[%clk 0:02:08]}  Qd6 {[%clk 0:01:58]} 21. Qc3 {[%clk 0:01:57]}  b6 {[%clk 0:01:55]} 22. Nd2 {[%clk 0:01:35]}  Qe5 {[%clk 0:01:48]} 23. Qxe5 {[%clk 0:01:29]}  Nxe5 {[%clk 0:01:49]} 24. f4 {[%clk 0:01:22]}  Nc6 {[%clk 0:01:43]} 25. e4 {[%clk 0:01:18]}  Bd7 {[%clk 0:01:42]} 26. Bd3 {[%clk 0:01:16]}  e5 {[%clk 0:01:36]} 27. f5 {[%clk 0:01:10]}  Kg7 {[%clk 0:01:33]} 28. Kf2 {[%clk 0:01:08]}  Kf6 {[%clk 0:01:33]} 29. g4 {[%clk 0:01:07]}  h5 {[%clk 0:01:28]} 30. Nf3 {[%clk 0:01:01]}  hxg4 {[%clk 0:01:25]} 31. hxg4 {[%clk 0:01:02]}  g5 {[%clk 0:01:21]} 32. Ke3 {[%clk 0:00:54]}  Nd4 {[%clk 0:01:20]} 33. Nd2 {[%clk 0:00:51]}  a5 {[%clk 0:01:11]} 34. Be2 {[%clk 0:00:29]}  a4 {[%clk 0:01:03]} 35. Bd1 {[%clk 0:00:29]}  a3 {[%clk 0:01:00]} 36. Nb1 {[%clk 0:00:28]}  b5 {[%clk 0:00:57]} 37. Nxa3 {[%clk 0:00:27]}  b4 {[%clk 0:00:56]} 38. Nc2 {[%clk 0:00:20]}  Nxc2+ {[%clk 0:00:55]} 39. Bxc2 {[%clk 0:00:20]}  Ke7 {[%clk 0:00:53]} 40. Kd2 {[%clk 0:00:19]}  Kd6 {[%clk 0:00:53]} 41. Kc1 {[%clk 0:00:19]}  Kc7 {[%clk 0:00:53]} 42. Kb2 {[%clk 0:00:19]}  Kb6 {[%clk 0:00:53]} 43. a3 {[%clk 0:00:18]}  bxa3+ {[%clk 0:00:50]} 44. Kxa3 {[%clk 0:00:18]}  Ka5 {[%clk 0:00:51]} 45. Bd3 {[%clk 0:00:16]}  f6 {[%clk 0:00:51]} 46. Be2 {[%clk 0:00:16]}  Bc6 {[%clk 0:00:51]} 47. Bd3 {[%clk 0:00:16]}  Bb7 {[%clk 0:00:51]} 48. Bc2 {[%clk 0:00:16]}  Bc6 {[%clk 0:00:51]} 49. Bd3 {[%clk 0:00:15]}  Bb7 {[%clk 0:00:51]} 50. Bb1 {[%clk 0:00:15]}  Bc6 {[%clk 0:00:52]} 51. Bd3 {[%clk 0:00:15]} 1/2-1/2


[Site "https://www.chess.com"]

[Event "Titled Tuesday Blitz December 20 Early 2022"]
[White "GiorgianBarbosa"]
[Black "Witek, Tomasz"]
[BlackFideId "1130056"]
[WhiteElo "2484"]
[BlackElo "2000"]
[Result "1/2-1/2"]
[Round "05"]
[TimeControl "180+2"]
[Date "2022.12.20"]
[WhiteClock "0:00:16"]
[BlackClock "0:00:26"]

1. d4 {[%clk 0:03:00]}  d5 {[%clk 0:02:55]} 2. c4 {[%clk 0:03:01]}  e6 {[%clk 0:02:54]} 3. Nc3 {[%clk 0:02:59]}  c5 {[%clk 0:02:54]} 4. cxd5 {[%clk 0:02:59]}  exd5 {[%clk 0:02:54]} 5. Nf3 {[%clk 0:02:58]}  Nc6 {[%clk 0:02:54]} 6. g3 {[%clk 0:02:56]}  Nf6 {[%clk 0:02:52]} 7. Bg2 {[%clk 0:02:55]}  cxd4 {[%clk 0:02:51]} 8. Nxd4 {[%clk 0:02:55]}  Bc5 {[%clk 0:02:50]} 9. Nb3 {[%clk 0:02:52]}  Bb6 {[%clk 0:02:49]} 10. O-O {[%clk 0:02:52]}  d4 {[%clk 0:02:47]} 11. Na4 {[%clk 0:02:51]}  O-O {[%clk 0:02:45]} 12. Nxb6 {[%clk 0:02:51]}  axb6 {[%clk 0:02:44]} 13. Bf4 {[%clk 0:02:34]}  Re8 {[%clk 0:02:33]} 14. a3 {[%clk 0:02:16]}  Bg4 {[%clk 0:02:07]} 15. Bxc6 {[%clk 0:02:01]}  bxc6 {[%clk 0:02:06]} 16. Qxd4 {[%clk 0:02:00]}  Bxe2 {[%clk 0:01:42]} 17. Qxd8 {[%clk 0:01:48]}  Raxd8 {[%clk 0:01:30]} 18. Rfe1 {[%clk 0:01:48]}  Nd5 {[%clk 0:01:13]} 19. Bd2 {[%clk 0:01:08]}  c5 {[%clk 0:01:08]} 20. Rac1 {[%clk 0:00:43]}  f6 {[%clk 0:00:53]} 21. a4 {[%clk 0:00:41]}  Ba6 {[%clk 0:00:38]} 22. a5 {[%clk 0:00:34]}  c4 {[%clk 0:00:38]} 23. Nd4 {[%clk 0:00:31]}  b5 {[%clk 0:00:36]} 24. Nc6 {[%clk 0:00:27]}  Rxe1+ {[%clk 0:00:33]} 25. Rxe1 {[%clk 0:00:25]}  Rd6 {[%clk 0:00:30]} 26. Nb4 {[%clk 0:00:22]}  Kf7 {[%clk 0:00:28]} 27. Nxd5 {[%clk 0:00:20]}  Rxd5 {[%clk 0:00:29]} 28. Bb4 {[%clk 0:00:20]}  Re5 {[%clk 0:00:27]} 29. Rxe5 {[%clk 0:00:18]}  fxe5 {[%clk 0:00:27]} 30. f4 {[%clk 0:00:17]}  exf4 {[%clk 0:00:26]} 31. gxf4 {[%clk 0:00:17]}  Ke6 {[%clk 0:00:26]} 32. Kf2 {[%clk 0:00:16]} 1/2-1/2


[Site "https://www.chess.com"]

[Event "Titled Tuesday Blitz December 20 Early 2022"]
[White "GoltsevDmitry2000"]
[Black "Djeno, Drago"]
[BlackFideId "14400421"]
[WhiteElo "2739"]
[BlackElo "2223"]
[Result "1-0"]
[Round "05"]
[TimeControl "180+2"]
[Date "2022.12.20"]
[WhiteClock "0:02:03"]
[BlackClock "0:00:19"]

1. e4 {[%clk 0:03:00]}  c5 {[%clk 0:02:59]} 2. Nf3 {[%clk 0:03:01]}  e6 {[%clk 0:02:59]} 3. d4 {[%clk 0:03:01]}  cxd4 {[%clk 0:03:00]} 4. Nxd4 {[%clk 0:03:02]}  a6 {[%clk 0:03:01]} 5. Nc3 {[%clk 0:03:03]}  b5 {[%clk 0:03:01]} 6. a3 {[%clk 0:03:03]}  Bb7 {[%clk 0:03:01]} 7. Be2 {[%clk 0:03:02]}  Qc7 {[%clk 0:03:01]} 8. Be3 {[%clk 0:03:02]}  Nf6 {[%clk 0:02:55]} 9. f3 {[%clk 0:03:02]}  d5 {[%clk 0:02:53]} 10. exd5 {[%clk 0:03:01]}  Nxd5 {[%clk 0:02:54]} 11. Nxd5 {[%clk 0:03:02]}  Bxd5 {[%clk 0:02:55]} 12. Rc1 {[%clk 0:03:01]}  Bd6 {[%clk 0:02:53]} 13. g3 {[%clk 0:03:01]}  O-O {[%clk 0:02:52]} 14. Kf2 {[%clk 0:03:00]}  Nc6 {[%clk 0:02:46]} 15. c4 {[%clk 0:02:52]}  bxc4 {[%clk 0:02:31]} 16. Bxc4 {[%clk 0:02:53]}  Bc5 {[%clk 0:01:47]} 17. Bxd5 {[%clk 0:02:49]}  Bxd4 {[%clk 0:01:46]} 18. Bxc6 {[%clk 0:02:40]}  Bxe3+ {[%clk 0:01:40]} 19. Kxe3 {[%clk 0:02:41]}  Rad8 {[%clk 0:01:34]} 20. Qc2 {[%clk 0:02:40]}  Qb6+ {[%clk 0:01:20]} 21. Ke2 {[%clk 0:02:39]}  Rc8 {[%clk 0:01:18]} 22. Rhd1 {[%clk 0:02:37]}  Rc7 {[%clk 0:01:14]} 23. Rd3 {[%clk 0:02:33]}  Qa5 {[%clk 0:00:58]} 24. Rc3 {[%clk 0:02:28]}  Qh5 {[%clk 0:00:53]} 25. Kf1 {[%clk 0:02:29]}  g6 {[%clk 0:00:48]} 26. Kg2 {[%clk 0:02:28]}  Rd8 {[%clk 0:00:46]} 27. Be4 {[%clk 0:02:26]}  Rcd7 {[%clk 0:00:46]} 28. Rd3 {[%clk 0:02:24]}  Rxd3 {[%clk 0:00:44]} 29. Bxd3 {[%clk 0:02:25]}  a5 {[%clk 0:00:43]} 30. Be2 {[%clk 0:02:23]}  Qe5 {[%clk 0:00:42]} 31. b4 {[%clk 0:02:13]}  axb4 {[%clk 0:00:39]} 32. axb4 {[%clk 0:02:10]}  Qe3 {[%clk 0:00:35]} 33. Rd1 {[%clk 0:02:08]}  Rb8 {[%clk 0:00:35]} 34. b5 {[%clk 0:02:08]}  h5 {[%clk 0:00:33]} 35. Qd3 {[%clk 0:02:04]}  Qe5 {[%clk 0:00:31]} 36. Rd2 {[%clk 0:02:03]}  Rb6 {[%clk 0:00:20]} 37. Qd8+ {[%clk 0:02:03]}  Kg7 {[%clk 0:00:19]} 38. Qxb6 {[%clk 0:02:03]} 1-0


[Site "https://www.chess.com"]